lending/lending_fUSD_20240128
["ID","MTS","AMOUNT","RATE_DAILY","PERIOD"]
[312893769,1706427041243,-321.76073503,0.00023,2]
[312893770,1706427041253,-557.57111248,0.00023,2]
[312893771,1706427041264,-2789.2038977,0.00023,2]
[312893772,1706427041276,-290.63166,0.00023,2]
[312893773,1706427041314,-306.09729367,0.00023,2]
[312893776,1706427043009,-8340.0,0.00023,2]
[312893777,1706427043119,-1034.48074918,0.00023,2]
[312893778,1706427043131,-1558.90760116,0.00023,2]
[312893779,1706427043143,-252.42,0.00023,2]
[312893780,1706427043156,-1700.0,0.00023,2]
[312893781,1706427043176,-3590.01366557,0.00023,2]
[312893782,1706427043187,-3358.41649054,0.00023,2]
[312893783,1706427043200,-13465.01179034,0.00023,2]
[312893784,1706427043212,-1830.39466394,0.00023,2]
[312893785,1706427043225,-1038.94731714,0.00023,2]
[312893786,1706427043238,-1017.312,0.00023,2]
[312893787,1706427043250,-1012.97035628,0.00023,2]
[312893788,1706427043262,-999.44377386,0.00023,2]
[312893789,1706427043274,-417.41414045,0.00023,2]
[312893790,1706427043295,-19049.83420458,0.00023,2]
[312893792,1706427043305,-11424.67310568,0.00023,2]
[312893819,1706427046134,-292.70291374,0.00022999,2]
[312893820,1706427046144,-771.40220231,0.00023,2]
[312893821,1706427046296,-264.50958414,0.00023,2]
[312893822,1706427046353,-2624.73948622,0.00023,2]
[312893826,1706427091394,300.0,0.00022469,2]
[312893827,1706427128238,424.7,0.00021273,2]
[312893828,1706427128273,178.77,0.00021273,2]
[312893829,1706427266017,1785.65,0.00022492,2]
[312893830,1706427301678,35.58,0.00018124,2]
[312893831,1706427301699,184.07,0.00018124,2]
[312893832,1706427413136,250.0,0.00022352,2]
[312893833,1706427454426,207.0,0.00026833,8]
[312893834,1706427471767,1565.93,0.00022332,2]
[312893835,1706427471796,2000.0,0.00022332,2]
[312893836,1706427471825,2000.0,0.00022332,2]
[312893837,1706427471852,2000.0,0.00022332,2]
[312893838,1706427471878,2000.0,0.00022332,2]
[312893839,1706427471904,2000.0,0.00022332,2]
[312893840,1706427471931,2000.0,0.00022332,2]
[312893841,1706427471961,2000.0,0.00022332,2]
[312893842,1706427471990,646.27668033,0.00022332,2]
[312893843,1706427472028,7687.79331967,0.00022332,2]
[312893844,1706427478225,461.07,0.00022271,2]
[312893845,1706427495336,2000.0,0.0002234,2]
[312893846,1706427498626,717.06,0.00022278,2]
[312893847,1706427522148,156.42,0.00022475,2]
[312893848,1706427539930,1852.42,0.00022027,2]
[312893849,1706427550127,573.29,0.0002011,2]
[312893850,1706427550323,573.29,0.00022374,2]
[312893851,1706427586450,250.0,0.00022027,2]
[312893852,1706427684129,1488.04,0.00022027,2]
[312893853,1706427702854,646.46,0.00022007,2]
[312893854,1706427717005,155.0,0.00022027,2]
[312893855,1706427719861,-1047.55348492,0.00022565,2]
[312893856,1706427719882,-279.82822608,0.00022566,2]
[312893857,1706427719904,-204.80922949,0.00022566,2]
[312893858,1706427732963,155.0,0.00022027,2]
[312893859,1706427748964,190.44595438,0.00022027,2]
[312893860,1706427784067,122.36310513,0.00021688,2]
[312893861,1706427784088,84.63689487,0.00021688,2]
[312893862,1706427784610,207.0,0.00025945,8]
[312893863,1706427832392,618.84762438,0.00022498,2]
[312893864,1706427894517,250.0,0.00022162,2]
[312893865,1706427901268,1046.51548075,0.00022157,2]
[312893866,1706427901305,953.48451925,0.00022157,2]
[312893867,1706427907988,631.14,0.00022157,2]
[312893868,1706427961206,415.37548075,0.00022152,2]
[312893869,1706427961226,84.39451925,0.00022152,2]
[312893870,1706427969890,878.69,0.00022152,2]
[312893871,1706428021689,515.96,0.00020174,2]
[312893872,1706428021881,515.96,0.00022438,2]
[312893873,1706428025371,4.99548075,0.00022092,2]
[312893874,1706428025394,245.00451925,0.00022092,2]
[312893875,1706428035275,1754.99548075,0.00022092,2]
[312893876,1706428035297,2000.0,0.00022092,2]
[312893877,1706428035318,2000.0,0.00022092,2]
[312893878,1706428035338,2000.0,0.00022092,2]
[312893879,1706428035358,2000.0,0.00022092,2]
[312893880,1706428035378,2000.0,0.00022092,2]
[312893881,1706428035398,12145.00451925,0.00022092,2]
[312893882,1706428074157,156.42,0.00022229,2]
[312893883,1706428074255,156.42,0.00022394,2]
[312893884,1706428084693,150.0,0.000219,2]
[312893885,1706428085963,150.0,0.00022448,2]
[312893886,1706428105260,1240.03,0.00022121,2]
[312893887,1706428121731,323.23,0.00022086,2]
[312893894,1706428187199,1229.16023377,0.00020608,2]
[312893895,1706428197264,158.62803392,0.00022459,2]
[312893916,1706428232163,-517.71181504,0.00022555,2]
[312893917,1706428232172,-1262.98113913,0.00022556,2]
[312893918,1706428232182,-4358.41987458,0.00022556,2]
[312893919,1706428232191,-292.70291374,0.00022557,2]
[312893920,1706428232202,-2952.88969151,0.00022557,2]
[312893921,1706428232211,-698.29129307,0.00022557,2]
[312893922,1706428232221,-2694.77203981,0.00022558,2]
[312893923,1706428232230,-156.42,0.0002256,2]
[312893924,1706428232239,-410.92,0.00022698,2]
[312893925,1706428232249,-291.046,0.00022699,2]
[312893926,1706428232258,-156.42,0.00022725,2]
[312893927,1706428232268,-151.73,0.00022733,2]
[312893928,1706428232278,-3577.34709144,0.00022796,2]
[312893929,1706428232521,-358.09149618,0.00022796,2]
[312893930,1706428232532,-478.56365276,0.00022796,2]
[312893931,1706428232548,-1504.11989338,0.00022796,2]
[312893932,1706428232579,-332.06921319,0.00022796,2]
[312893933,1706428232596,-319.48278176,0.00022796,2]
[312893934,1706428232607,-660.805318,0.00022796,2]
[312893935,1706428232619,-1727.96399541,0.00022796,2]
[312893938,1706428238153,-10079.46535251,0.00022796,2]
[312893940,1706428238163,-300.0,0.00022797,2]
[312893941,1706428238172,-150.0,0.00022797,2]
[312893942,1706428238182,-1643.89459881,0.00022798,2]
[312893943,1706428238191,-1000.0,0.00022798,2]
[312893944,1706428238201,-1465.264,0.00022799,2]
[312893945,1706428238211,-200.0,0.00022816,2]
[312893946,1706428238220,-800.0,0.00022816,2]
[312893947,1706428238229,-207.0,0.00022816,2]
[312893948,1706428238239,-156.42,0.00022891,2]
[312893949,1706428238248,-759.8606458,0.00022898,2]
[312893950,1706428238259,-189.01095501,0.00022898,2]
[312893951,1706428238269,-267.2715935,0.00022898,2]
[312893952,1706428238278,-2907.00228459,0.00022898,2]
[312893953,1706428238288,-489.30794803,0.00022898,2]
[312893954,1706428238298,-212.95599231,0.00022898,2]
[312893955,1706428238307,-3003.92296332,0.00022898,2]
[312893956,1706428238317,-530.28990849,0.00022898,2]
[312893957,1706428238326,-3049.47052457,0.00022898,2]
[312893958,1706428238335,-295.95881085,0.00022898,2]
[312893959,1706428238345,-281.84911797,0.00022898,2]
[312893960,1706428238355,-362.29642557,0.00022898,2]
[312893961,1706428238364,-514.5107,0.00022898,2]
[312893962,1706428238374,-177.189,0.00022898,2]
[312893963,1706428238383,-9368.2764,0.00022898,2]
[312893964,1706428238393,-171.70472139,0.00022899,2]
[312893965,1706428238402,-526.01403717,0.00022899,2]
[312893966,1706428238412,-733.26,0.00022899,2]
[312893967,1706428238421,-189.4381,0.000229,2]
[312893968,1706428238431,-1000.0,0.000229,2]
[312893969,1706428238440,-22574.3784582,0.000229,2]
[312893970,1706428238473,-2741.6105418,0.000229,2]
[312893971,1706428238483,-33067.6724,0.000229,2]
[312893972,1706428238491,-1000.0,0.000229,2]
[312893973,1706428238501,-2124.9857,0.000229,2]
[312893974,1706428238511,-927.36121643,0.00022945,2]
[312893975,1706428238520,-1606.80443646,0.00022998,4]
[312893976,1706428238529,-324.62760446,0.00022998,2]
[312893977,1706428238539,-164.1687383,0.00022998,2]
[312893978,1706428238548,-1647.27407841,0.00022998,2]
[312893979,1706428238557,-1013.26547405,0.00022998,2]
[312893980,1706428238567,-502.99418805,0.00022998,2]
[312893981,1706428238577,-1136.22308606,0.00022998,2]
[312893982,1706428238586,-661.67897386,0.00022998,2]
[312893983,1706428238596,-702.12614224,0.00022998,2]
[312893985,1706428238606,-393.88680629,0.00022998,2]
[312893987,1706428238614,-155.0,0.00022998,2]
[312893989,1706428238623,-1813.68084069,0.00022998,2]
[312893991,1706428238633,-265.75241527,0.00022998,2]
[312893993,1706428238642,-841.78208502,0.00022998,2]
[312893995,1706428238652,-249.34126284,0.00022998,2]
[312893997,1706428238661,-1259.38403935,0.00022998,2]
[312893998,1706428238671,-458.68667897,0.00022998,2]
[312893999,1706428238680,-941.41772909,0.00022998,2]
[312894000,1706428238690,-412.34934477,0.00022999,2]
[312894001,1706428238700,-5152.92105819,0.00023,2]
[312894002,1706428238713,-8544.71455348,0.00023,2]
[312894003,1706428238726,-868.71140911,0.00023,2]
[312894004,1706428238742,-679.21665167,0.00023,2]
[312894005,1706428238763,-70251.54008847,0.00023,2]
[312894006,1706428238775,-2500.82119386,0.00023,2]
[312894007,1706428238798,-311.21120683,0.00023,2]
[312894008,1706428238821,-347.655,0.00023,2]
[312894034,1706428240752,-67966.46834217,0.00023,2]
[312894035,1706428240761,-294.44502856,0.00023,2]
[312894036,1706428240771,-291.93999132,0.00023,2]
[312894037,1706428240780,-220.4291599,0.00023,2]
[312894038,1706428240789,-213.88589151,0.00023,2]
[312894039,1706428240798,-213.12691106,0.00023,2]
[312894040,1706428240807,-209.51598376,0.00023,2]
[312894041,1706428240816,-500.0,0.00023,2]
[312894042,1706428240825,-263.5359239,0.00023,2]
[312894043,1706428240834,-267.04290284,0.00023,2]
[312894044,1706428240847,-257.33701993,0.00023,2]
[312894045,1706428240856,-3994.3786196,0.00023003,2]
[312894046,1706428240865,-1298.4821515,0.00023003,2]
[312894047,1706428240874,-25128.4818801,0.00023019,2]
[312894048,1706428240884,-156.42,0.00023056,2]
[312894049,1706428240893,-156.42,0.00023222,2]
[312894050,1706428240903,-150.0,0.00023248,2]
[312894051,1706428240912,-878.69,0.0002326,2]
[312894052,1706428240923,-156.42,0.00023387,2]
[312894053,1706428240934,-717.06,0.00023391,2]
[312894054,1706428240944,-800.0,0.00023397,2]
[312894055,1706428240953,-1240.03,0.00023765,2]
[312894056,1706428240963,-800.0,0.00023973,2]
[312894057,1706428240972,-202.09913361,0.00024,2]
[312894058,1706428240981,-2325.67502093,0.00024262,2]
[312894059,1706428240991,-878.69,0.00024367,2]
[312894060,1706428241001,-3790.07,0.00024384,2]
[312894061,1706428241113,-554.32,0.00024384,2]
[312894062,1706428241126,-717.06,0.00024505,2]
[312894063,1706428241135,-250.0,0.00024658,2]
[312894064,1706428241145,-515.96,0.00024702,2]
[312894065,1706428241154,-363.0,0.00024752,2]
[312894066,1706428241163,-57377.49085249,0.000249,2]
[312894067,1706428241223,-646.66986606,0.000249,2]
[312894068,1706428241240,-222035.64113149,0.000249,2]
[312894069,1706428241250,-631.14,0.00024927,2]
[312894070,1706428241259,-1903.74995284,0.00025,2]
[312894071,1706428241268,-550.0,0.00025,3]
[312894072,1706428241278,-2500.0,0.00025,3]
[312894073,1706428241287,-158.56,0.00025,2]
[312894074,1706428241296,-461.07,0.00025055,2]
[312894075,1706428241305,-4701.12920179,0.0002509,2]
[312894076,1706428241315,-207.0,0.0002514,5]
[312894077,1706428241324,-1240.03,0.00025409,2]
[312894078,1706428241333,-878.69,0.00025475,2]
[312894079,1706428241342,-323.51152453,0.00025491,2]
[312894080,1706428241352,-1171.0,0.000255,2]
[312894081,1706428241361,-5518.0,0.000256,2]
[312894082,1706428241370,-717.06,0.00025619,2]
[312894083,1706428241379,-216.0,0.000258,2]
[312894084,1706428241389,-999.0,0.0002598,2]
[312894085,1706428241398,-427.0,0.0002598,2]
[312894086,1706428241407,-236.0,0.0002598,2]
[312894087,1706428241416,-500.0,0.00026,2]
[312894088,1706428241426,-500.0,0.00026,2]
[312894089,1706428241435,-500.0,0.00026,2]
[312894090,1706428241444,-500.0,0.00026,2]
[312894091,1706428241454,-500.0,0.00026,2]
[312894092,1706428241463,-150.0,0.00026079,2]
[312894093,1706428241472,-878.69,0.00026583,2]
[312894094,1706428241481,-717.06,0.00026733,2]
[312894095,1706428241490,-200.0,0.00026833,2]
[312894096,1706428241500,-515.96,0.00026966,2]
[312894097,1706428241509,-600.0,0.00027,3]
[312894098,1706428241518,-1240.03,0.00027053,2]
[312894099,1706428241528,-927.36121641,0.00027213,3]
[312894100,1706428241537,-237.45,0.00027397,2]
[312894101,1706428241546,-188.93,0.00027397,2]
[312894102,1706428241555,-156.47,0.00027397,2]
[312894103,1706428241564,-796.0071,0.00027397,7]
[312894104,1706428241574,-207.0,0.00027464,9]
[312894105,1706428241583,-362.11,0.00027671,2]
[312894106,1706428241591,-631.14,0.00027696,2]
[312894107,1706428241601,-461.07,0.00027839,2]
[312894108,1706428241610,-6444.8207003,0.000279,2]
[312894109,1706428241619,-206.27904587,0.000279,2]
[312894110,1706428241628,-93310.07373584,0.00028,2]
[312894111,1706428241647,-948.83827011,0.00028,2]
[312894112,1706428241662,-2142.95365204,0.00028,2]
[312894113,1706428241675,-2727.47376045,0.00028,2]
[312894114,1706428241687,-14777.25296788,0.00028,2]
[312894115,1706428241763,-15717.17429349,0.00028,2]
[312894116,1706428241772,-200.0,0.00028,2]
[312894117,1706428241781,-151.73,0.00028417,2]
[312894118,1706428241791,-500.0,0.00028644,2]
[312894119,1706428241800,-500.0,0.00028644,2]
[312894120,1706428241809,-500.0,0.00028644,2]
[312894121,1706428241819,-500.0,0.00028644,2]
[312894122,1706428241828,-500.0,0.00028644,2]
[312894123,1706428241838,-500.0,0.00028644,2]
[312894124,1706428241851,-500.0,0.00028644,2]
[312894125,1706428241860,-500.0,0.00028644,2]
[312894126,1706428241869,-500.0,0.00028644,2]
[312894127,1706428241879,-500.0,0.00028644,2]
[312894128,1706428241889,-500.0,0.00028644,2]
[312894129,1706428241898,-500.0,0.00028644,2]
[312894130,1706428241907,-500.0,0.00028644,2]
[312894131,1706428241917,-500.0,0.00028644,2]
[312894132,1706428241926,-500.0,0.00028644,2]
[312894133,1706428241936,-500.0,0.00028644,2]
[312894134,1706428241945,-500.0,0.00028644,2]
[312894135,1706428241955,-500.0,0.00028644,2]
[312894136,1706428241964,-500.0,0.00028644,2]
[312894137,1706428241972,-500.0,0.00028644,2]
[312894138,1706428241981,-500.0,0.00028644,2]
[312894139,1706428241990,-500.0,0.00028644,2]
[312894140,1706428241999,-500.0,0.00028644,2]
[312894141,1706428242009,-500.0,0.00028644,2]
[312894142,1706428242018,-500.0,0.00028644,2]
[312894143,1706428242027,-500.0,0.00028644,2]
[312894144,1706428242036,-500.0,0.00028644,2]
[312894145,1706428242045,-500.0,0.00028644,2]
[312894146,1706428242054,-500.0,0.00028644,2]
[312894147,1706428242062,-500.0,0.00028644,2]
[312894148,1706428242072,-500.0,0.00028644,2]
[312894149,1706428242081,-362.11,0.00028695,2]
[312894150,1706428242091,-1240.03,0.00028696,2]
[312894151,1706428242100,-427.0,0.0002898,2]
[312894152,1706428242109,-236.0,0.0002898,2]
[312894153,1706428242118,-5831.53715676,0.00029,15]
[312894154,1706428242127,-650.0,0.00029,3]
[312894155,1706428242136,-515.96,0.0002923,2]
[312894156,1706428242145,-362.11,0.00029719,2]
[312894157,1706428242154,-207.0,0.00029788,12]
[312894158,1706428242163,-8587.44667292,0.00029979,2]
[312894159,1706428242174,-1196.35888034,0.00029979,2]
[312894181,1706428243336,-951.68382876,0.00022999,2]
[312894182,1706428243346,-538.87905252,0.00029979,2]
[312894183,1706428243357,-3877.40839156,0.00029979,2]
[312894184,1706428243368,-380.0000097,0.00029979,2]
[312894185,1706428243451,-457.56,0.00029979,2]
[312894186,1706428243464,-265.36254297,0.00029979,2]
[312894187,1706428243475,-863.99423,0.00029979,2]
[312894192,1706428244981,1312.5817,0.00022497,2]
[312894194,1706428246297,-412.34934477,0.00024899,2]
[312894195,1706428246307,-384.31966292,0.00029978,2]
[312894196,1706428246316,-9460.2631809,0.00029979,2]
[312894197,1706428246328,-1830.30702672,0.00029979,2]
[312894198,1706428247454,-4444.73972637,0.00029979,2]
[312894199,1706428247464,-155.0,0.0003,2]
[312894200,1706428247474,-9702.58598332,0.0003,2]
[312894201,1706428247483,-161.476822,0.0003,2]
[312894202,1706428247492,-1240.03,0.0003034,2]
[312894203,1706428247501,-631.14,0.00030466,2]
[312894204,1706428247510,-155.02883762,0.00030552,2]
[312894205,1706428247520,-461.07,0.00030623,2]
[312894206,1706428247529,-362.11,0.00030743,2]
[312894207,1706428247538,-323.23,0.0003092,2]
[312894208,1706428247547,-24650.66221143,0.00031,2]
[312894209,1706428247557,-700.0,0.00031,3]
[312894210,1706428247566,-927.36121641,0.00031481,5]
[312894211,1706428247575,-515.96,0.00031494,2]
[312894212,1706428247584,-369.0,0.00031563,5]
[312894213,1706428247594,-180.0,0.00031644,2]
[312894214,1706428247603,-362.11,0.00031767,2]
[312894215,1706428247613,-356.22093144,0.00031799,4]
[312894216,1706428247622,-28664.52776253,0.000318,3]
[312894217,1706428247633,-12760.69679462,0.000318,3]
[312894218,1706428247645,-5750.8448532,0.000318,3]
[312894219,1706428248142,-2952.88969151,0.00029978,2]
[312894220,1706428248152,-393.26687066,0.00031799,4]
[312894221,1706428248161,-45718.59301682,0.000318,3]
[312894222,1706428313040,1000.0,0.00021689,2]
[312894223,1706428320393,5322.95794876,0.000155,2]
[312894224,1706428324476,624.38521772,0.0002,2]
[312894225,1706428335237,736.51866558,0.00021,2]
[312894226,1706428338591,300.0,0.00022456,2]
[312894227,1706428346347,1884.65075153,0.00015,2]
[312894228,1706428351741,497.74555716,0.00020698,5]
[312894229,1706428367996,900.39865903,0.000225,2]
[312894230,1706428419278,2183.00995543,0.0002,2]
[312894233,1706428511729,250.0,0.00022,2]
[312894234,1706428513346,250.0,0.00022274,2]
[312894237,1706428904853,272.00670442,0.00022,2]
[312894240,1706429406385,150.0,0.00022473,2]
[312894241,1706429406414,85.1,0.00022473,2]
[312894254,1706429432438,-292.70291374,0.0002252,2]
[312894255,1706429432448,-8.62015033,0.00022521,2]
[312894262,1706429438366,-526.22979665,0.00022519,2]
[312894263,1706429438376,-250.0,0.00022531,2]
[312894264,1706429438386,-32.52051112,0.00022548,2]
[312894265,1706429438398,-217.47948888,0.00022548,2]
[312894266,1706429438408,-200.0,0.00022596,2]
[312894267,1706429438418,-323.79775067,0.0002277,2]
[312894268,1706429438429,-420.8888349,0.0002277,2]
[312894269,1706429438479,-6255.2304,0.0002277,2]
[312894270,1706429438492,-67.08301443,0.0002277,2]
[312894271,1706429438502,-153.35478115,0.000228,2]
[312894272,1706429438511,-153.35478111,0.00022814,2]
[312894273,1706429438521,-200.0,0.00022816,2]
[312894274,1706429438531,-250.0,0.00022822,2]
[312894275,1706429438541,-153.35478111,0.00022829,2]
[312894276,1706429438551,-150.99,0.00022829,2]
[312894277,1706429438561,-150.0,0.00022838,2]
[312894278,1706429438572,-153.35478111,0.00022843,2]
[312894279,1706429438593,-153.35478111,0.00022857,2]
[312894280,1706429438604,-153.35478111,0.00022871,2]
[312894281,1706429438614,-153.35478111,0.00022886,2]
[312894282,1706429438625,-1270.46762998,0.0002289,2]
[312894283,1706429438636,-150.0,0.00022899,2]
[312894284,1706429438646,-341.6147,0.000229,2]
[312894285,1706429438656,-391.3311,0.000229,2]
[312894286,1706429438665,-31127.48615889,0.000229,2]
[312894287,1706429438679,-793.18800703,0.000229,2]
[312894288,1706429438692,-1857.66139216,0.000229,2]
[312894289,1706429438709,-392.92178369,0.000229,2]
[312894290,1706429438723,-8016.07738084,0.000229,2]
[312894291,1706429438735,-3335.27574072,0.000229,2]
[312894292,1706429438747,-2891.17880614,0.000229,2]
[312894293,1706429438760,-1085.41820824,0.000229,2]
[312894294,1706429438773,-783.45476951,0.000229,2]
[312894295,1706429438794,-638.24848553,0.000229,2]
[312894296,1706429438811,-772.60300918,0.000229,2]
[312894308,1706429440890,-271.33310921,0.000229,2]
[312894309,1706429440946,-167.26174886,0.000229,2]
[312894310,1706429440956,-167.21031147,0.000229,2]
[312894311,1706429440965,-2331.8125834,0.000229,2]
[312894312,1706429441652,-738.70204546,0.000229,2]
[312894327,1706429443445,-1062.55691906,0.00022899,2]
[312894328,1706429443455,-3179.81088094,0.000229,2]
[312894329,1706429443467,-1757.9937902,0.000229,2]
[312894330,1706429443477,-280.00053419,0.000229,2]
[312894331,1706429443488,-725.00158188,0.000229,2]
[312894332,1706429443557,-2459.53667299,0.000229,2]
[312894333,1706429443613,-1535.46121094,0.000229,2]
[312894334,1706429443623,-153.35478111,0.000229,2]
[312894335,1706429443632,-825.96530806,0.000229,2]
[312894336,1706429443641,-9431.3829,0.000229,2]
[312894337,1706429443651,-1310.1317317,0.000229,2]
[312894338,1706429443660,-461.69343988,0.000229,2]
[312894339,1706429443670,-155.36731009,0.000229,2]
[312894340,1706429443679,-715.25837592,0.000229,2]
[312894341,1706429443689,-3354.50597364,0.000229,2]
[312894342,1706429443698,-151.61473483,0.000229,2]
[312894343,1706429443708,-681.0657149,0.000229,2]
[312894344,1706429443856,-1161.26077904,0.000229,2]
[312894345,1706429443865,-873.77,0.00022984,2]
[312894346,1706429443875,-181.71064084,0.0002299,2]
[312894347,1706429443884,-87972.44998559,0.00023,2]
[312894348,1706429443901,-1738.0000003,0.00023,2]
[312894370,1706429446603,-292.70291374,0.00022899,2]
[312894371,1706429446613,-84.64275574,0.00023,2]
[312894372,1706429468385,8433.99912371,0.00021849,7]
[312894373,1706429470286,3190.67771766,0.00022078,2]
[312894374,1706429525223,247.23694443,0.00022,2]
[312894375,1706429541881,150.0,0.00020698,5]
[312894376,1706429541901,150.0,0.00020698,5]
[312894377,1706429541921,2970.33881677,0.00020698,5]
[312894378,1706429555584,300.0,0.00022078,2]
[312894379,1706429679442,-526.22979665,0.0002276,2]
[312894380,1706429679462,-270.69112197,0.0002276,2]
[312894381,1706429679481,-292.70291374,0.00022761,2]
[312894382,1706429679501,-1296.4777654,0.00022765,2]
[312894383,1706429679520,-286.58798442,0.00022769,2]
[312894384,1706429679540,-19037.90879463,0.00022769,2]
[312894385,1706429679559,-1253.0,0.0002277,2]
[312894386,1706429679578,-812.7754651,0.000228,2]
[312894387,1706429696543,-500.0,0.00022816,2]
[312894388,1706429696563,-200.0,0.00022816,2]
[312894389,1706429696583,-8300.0,0.00022898,2]
[312894390,1706429719953,3.62615809,0.00022,2]
[312894391,1706429719973,246.37384191,0.00022,2]
[312894392,1706429721244,465.24189115,0.00022274,2]
[312894393,1706429997485,399.21,0.00020709,2]
[312894394,1706430039386,23900.0,0.00022141,2]
[312894395,1706430067601,487.11,0.000222,2]
[312894396,1706430068381,250.0,0.000222,2]
[312894397,1706430090640,160.19,0.00022225,2]
[312894398,1706430114732,699.02,0.00022225,2]
[312894399,1706430173114,2000.0,0.00022184,2]
[312894400,1706430193183,1272.44,0.00022303,2]
[312894401,1706430224093,200.0,0.00022126,2]
[312894402,1706430314091,553.38,0.00022365,2]
[312894403,1706430351865,171.74,0.00022355,2]
[312894404,1706430368056,250.0,0.00022059,2]
[312894405,1706430398837,421.55182135,0.00021982,2]
[312894406,1706430400188,638.93,0.00022081,2]
[312894407,1706430414362,381.83,0.00022015,2]
[312894408,1706430439051,416.26,0.0002009,2]
[312894409,1706430439146,416.26,0.00022354,2]
[312894410,1706430512874,195.91,0.00022016,2]
[312894411,1706430515345,250.0,0.00022016,2]
[312894412,1706430521545,200.0,0.00022056,2]
[312894413,1706430544889,22508.06,0.00022027,2]
[312894414,1706430560454,440.78,0.00021934,2]
[312894415,1706430597443,1372.08,0.00021934,2]
[312894416,1706430631577,-546.06149217,0.0002251,2]
[312894417,1706430631589,-431.18512968,0.0002251,2]
[312894418,1706430631601,-794.05133324,0.0002251,2]
[312894419,1706430631610,-1000.0,0.00022511,2]
[312894420,1706430631620,-292.70291374,0.00022512,2]
[312894421,1706430631629,-2786.16728068,0.00022512,2]
[312894422,1706430631638,-3035.83487903,0.00022513,2]
[312894423,1706430631647,-43087.29438539,0.00022513,2]
[312894424,1706430631658,-150.0,0.00022515,2]
[312894425,1706430631667,-30039.3673392,0.00022521,2]
[312894426,1706430631676,-171.74,0.00022646,2]
[312894427,1706430631685,-159.68440982,0.00022694,2]
[312894428,1706430631694,-11365.6669,0.000227,2]
[312894429,1706430631704,-159.68440978,0.0002272,2]
[312894430,1706430631713,-159.68440978,0.00022746,2]
[312894431,1706430631722,-962.80943421,0.0002277,2]
[312894432,1706430631734,-290.19056579,0.0002277,2]
[312894433,1706430631743,-159.68440978,0.00022771,2]
[312894434,1706430631752,-159.68440978,0.00022797,2]
[312894435,1706430631762,-4675.0373499,0.000228,2]
[312894436,1706430631774,-270.98804803,0.000228,2]
[312894437,1706430631784,-299.99,0.000228,2]
[312894438,1706430631800,-1126.09699632,0.000228,2]
[312894439,1706430631816,-8433.99912371,0.000228,2]
[312894440,1706430631827,-879.76098058,0.000228,2]
[312894441,1706430631837,-559.71247832,0.000228,2]
[312894442,1706430631848,-341.78195328,0.000228,2]
[312894443,1706430631870,-832.48880502,0.000228,2]
[312894444,1706430631881,-502.88675972,0.000228,2]
[312894460,1706430637542,-459.59826859,0.000228,2]
[312894464,1706430637650,-43300.60778546,0.000228,2]
[312894465,1706430637662,-731.0,0.000228,2]
[312894466,1706430637674,-6237.00356573,0.000228,2]
[312894472,1706430637911,-1384.03063162,0.000228,2]
[312894475,1706430637927,-3727.40956189,0.000228,2]
[312894477,1706430637939,-1006.47499183,0.000228,2]
[312894479,1706430637948,-253.6535,0.000228,2]
[312894481,1706430637957,-1126.34155983,0.000228,2]
[312894483,1706430637966,-500.0,0.00022816,2]
[312894485,1706430637974,-200.0,0.00022816,2]
[312894487,1706430637984,-159.68440978,0.00022823,2]
[312894489,1706430637993,-159.68440978,0.00022849,2]